{"text_format":"1","workbook":"xlsx","n_sheets":5,"sheets":["Portada","base Solicitudes de Información","Comentario","Análisis","Solicitudes de acceso a la info"],"not_rendered":{"charts":1,"images":3,"macros":0,"external_links":5,"defined_names":19,"comments":0,"pivot_tables":1},"unopened":[],"bounds":{"document_bytes":16777216,"sheet_cells":100000,"rows_first":2000,"rows_last":500,"rows_between":2000,"halvings":0,"cell_chars":16384,"cell_head_chars":4096},"cells_cut":0,"cells_raw":0,"read":"whole","date_system":"1900"}

{"sheet":"Portada","index":0,"n_rows":40,"n_cols":18,"rows_kept":40,"cut":false,"hidden":false,"merged":[]}
[null,null,null,null,null,null,null,null,null,null,null,null,null,null,null,"Abril 2022",null,"p2"]
[]
[]
[]
[]
[]
[]
[]
[]
[]
[]
[]
[]
[]
[]
[]
[]
[]
[]
[]
[]
[]
[]
[]
[]
[]
[]
[]
[]
[]
[]
[]
[]
[]
[]
[]
[]
[]
[]
["pone para conocimiento de la ciudadanía en general, el informe correspondiente a las Solicitudes de Acceso a la Información que han sido allegadas a la entidad durante el periodo indicado"]

{"sheet":"base Solicitudes de Información","index":1,"n_rows":21,"n_cols":9,"rows_kept":21,"cut":false,"hidden":false,"merged":[[10,1,13,2],[13,3,14,7],[10,3,11,6]]}
[]
[]
[]
[]
[]
[]
[]
[]
[]
[]
[null,"REPORTE  GESTIÓN DE PETICIONES\n\nFecha:  2021- 12- 01    a   2021 - 12 - 31\nEstado de Petición:  Al Periodo\n"]
[]
[]
[]
[]
[]
[]
[]
[null,"Número petición\nNumero de registro en el Sistema","Funcionario:\nNombre asociado al usuario que tiene a cargo la petición ","Canal:\nNombre del canal parametrizado en el sistema por el cual fue registrada la petición","Tipología actualizada: \nTipo de documento utilizado por la entidad","Estado petición final\nEstado de la petición en el último día  del mes","Asunto \nResumen de la solicitud realizada por el ciudadano o resumida por el funcionario","Días gestión\nDías calendario transcurridos desde la fecha de inicio de términos hasta el último día del mes","Estado del Requerimiento\n \"Gestionado\" o \"Pendiente\" de respuesta definitiva por  parte de la Defensoría del Espacio Público o de las entidades competentes"]
[null,{"$f":"+'[5]Solicitudes de acceso a la info'!B2","v":1373372022},{"$f":"+'[5]Solicitudes de acceso a la info'!L2","v":"Zulma Yazmin Lopez Vasquez"},{"$f":"+'[5]Solicitudes de acceso a la info'!O2","v":"WEB"},{"$f":"+'[5]Solicitudes de acceso a la info'!P2","v":"SOLICITUD DE ACCESO A LA INFORMACION"},{"$f":"+'[5]Solicitudes de acceso a la info'!R2","v":"Por ampliar - por solicitud ampliacion"},{"$f":"+'[5]Solicitudes de acceso a la info'!T2","v":"BUENAS NOCHES ADJUNTO CONTRA RESPUESTA AL RADICADO 20224000045132 DEL DIA 04 DE MARZO DE 2022 ADJUNTO RESPECTIVA CARTA CON RESPECTIVA SOLICITUD"},{"$f":"+'[5]Solicitudes de acceso a la info'!BD2","v":1},{"$f":"+'[5]Solicitudes de acceso a la info'!CQ2","v":"GESTIONADO"}]
[null,{"$f":"+'[5]Solicitudes de acceso a la info'!B3","v":1393672022},{"$f":"+'[5]Solicitudes de acceso a la info'!L3","v":"JANETH  REDONDO "},{"$f":"+'[5]Solicitudes de acceso a la info'!O3","v":"ESCRITO"},{"$f":"+'[5]Solicitudes de acceso a la info'!P3","v":"SOLICITUD DE ACCESO A LA INFORMACION"},{"$f":"+'[5]Solicitudes de acceso a la info'!R3","v":"Solucionado - Por traslado"},{"$f":"+'[5]Solicitudes de acceso a la info'!T3","v":"IMPORTANTE RECORD GUINESS 20 JULIO - Balloons Grupo Aventuras"},{"$f":"+'[5]Solicitudes de acceso a la info'!BD3","v":1},{"$f":"+'[5]Solicitudes de acceso a la info'!CQ3","v":"GESTIONADO"}]

{"sheet":"Comentario","index":2,"n_rows":34,"n_cols":7,"rows_kept":34,"cut":false,"hidden":false,"merged":[[14,2,15,3],[31,4,31,5],[30,4,30,5],[33,2,33,6],[17,5,28,6],[17,2,28,3]]}
[]
[]
[]
[]
[]
[]
[]
[]
[]
[]
[]
[]
[]
[]
[null,null,"Comentario general"]
[]
[]
[null,null,"Durante el mes de diciembre de 2021, se recibieron dos (02) solicitudes clasificadas como de acceso a la información.\n\n\n\n\n\n\n",null,null,"El estado en el cual se encuentran las solicitudes clasificadas como de acceso a la información, es el que se detalla a continuación:\n\n► Una (1)  se trasladaron a otras entidades por competencia.\n\n► Una (1)  Respondida a la fecha del reporte."]
[]
[]
[]
[]
[]
[]
[]
[]
[]
[]
[]
[]
[null,null,"Número de solicitudes de Infomación recibidas","Número de solicitudes de información trasladadas  a otra entidad","Número de solicitudes de información respondidas a la fecha del reporte",null,"Número de solicitudes en las que se negó la solicitud de información"]
[null,null,2,1,1,null,0]
[]
[null,null,"Nota: Según el Decreto 491 de 2020, el tiempo para dar respuesta a las solicitudes de información es de 20 día hábiles"]

{"sheet":"Análisis","index":3,"n_rows":32,"n_cols":3,"rows_kept":32,"cut":false,"hidden":false,"merged":[[31,2,31,5],[18,2,19,8],[20,2,21,8],[20,9,21,9],[22,2,23,8],[28,2,29,8]]}
[]
[]
[]
[]
[]
[]
[]
[]
[]
[]
[]
[]
[]
[]
[]
[]
[null,null,"Análisis del período"]
[]
[null,null,"De conformidad con lo establecido en el artículo 5 del Decreto 491 de 2020 para las solicitudes de información radicadas durante la emergencia sanitaria, ampliada con la Resolución 666 de 2021 hasta el 30 de junio de 2022."]
[]
[null,null,"La Defensoría del Espacio público, conforme a la Ley de transparencia 1712 de 2014, brinda a la ciudadanía la información relacionada con todas las solicitudes de acceso a la información pública, como mecanismo para generar confianza y mostrar transparencia sobre las actividades que realiza la entidad, sin embargo, hay alguna información reservada de conformidad con la ley."]
[]
[null,null,"Al revisar el reporte del mes de abril, de las 02 peticiones recibidas por la entidad clasificadas como solicitudes de acceso a la información, 1 se trasladó a la entidad competente."]
[]
[]
[]
[]
[null,null,"Nota importante"]
[null,null,"Dentro de los tipos de petición disponibles en el Sistema Distrital para la gestión de Peticiones Ciudadanas \"Bogotá te escucha\", se encuentra el catalogado como \"solicitud de acceso a la información”, la cual es definida como:\n   \n\"La facultad que tiene la ciudadanía de solicitar y obtener acceso a la información sobre las actualizaciones derivadas del cumplimiento de las funciones atribuidas, solicitud de registros, informes, datos o documentos producidos o en posesión control o custodia de una entidad.\""]
[]
[]
[null,null,"Nota: Según el Decreto 491 de 2020, el tiempo para dar respuesta a las solicitudes de información es de 20 día hábiles"]

{"sheet":"Solicitudes de acceso a la info","index":4,"n_rows":24,"n_cols":100,"rows_kept":24,"cut":false,"hidden":true,"merged":[]}
["Número petición","Número petición2","Sector","Tipo de entidad","Entidad","Tipo de dependencia","Dependencia","Dependencia hija","Tema","Categoría subtema","Subtema","Funcionario","Estado del Usuario","Punto atención","Canal","Tipo petición","Estado petición inicial","Estado petición final","Estado de la petición","Asunto","Proceso de calidad","Trámite o servicio","Es trámite","Adjunto","Tiene procedencia","Entidad procedencia","Radicado de procedencia","Es copia","Entidad fuente","Nota","Localidad de los hechos","UPZ de los hechos","Barrio de los hechos","Estrato de los hechos","Longitud de los hechos","Latitud de los hechos","Longitud de registro de la petición","Latitud de registro de la petición","Fecha ingreso","Fecha registro","Fecha asignación","Fecha inicio términos","Número radicado entrada","Fecha radicado entrada","Fecha solicitud aclaración","Fecha solicitud ampliación","Fecha respuesta aclaración","Fecha respuesta ampliación","Fecha reinicio de términos","Fecha vencimiento","Días para el vencimiento","Número radicado salida","Fecha radicado salida","Fecha finalización","Fecha cierre","Días gestión","Días vencimiento","Actividad","Responsable actividad","Fecha fin actividad","Días de la actividad","Días vencimiento actividad","Comentario","Observaciones","Tipo persona","Tipo de peticionario","Tipo usuario","Login de usuario","Tipo de solicitante","Tipo de documento","Nombre peticionario","Número de documento","Condición del ciudadano","Correo electrónico peticionario","Teléfono fijo peticionario","Celular peticionario","Dirección residencia peticionario","Localidad del ciudadano","UPZ del ciudadano","Barrio del ciudadano","Estrato del ciudadano","Notificación física","Notificación electrónica","Entidad que recibe","Entidad que traslada","Transacción entidad","Tipo de ingreso","Tipo de registro","Comunes","Periodo","Tipo de gestión","Tipo de pendiente","Gestión en rango días","Tipo reporte","Tipo reporte por entidad","Tipo de Re-ingreso","Estado del reingreso","Número de veces de reingreso","Tipo de traslado","Excluir"]
[423,4200732021,"GOBIERNO","ENTIDADES DISTRITALES","DEFENSORIA DEL ESPACIO PUBLICO","Oficina de Atencion a la Ciudadania | Puede Consolidar | Trasladar Entidades","AREA DE ATENCION A LA CIUDADANIA",null,"ESPACIO PUBLICO","SERVICIO A LA CIUDADANIA","ATENCION A LA CIUDADANIA","Olga Lucia Mesa Moreno","Activo",null,"WEB","SOLICITUD DE ACCESO A LA INFORMACION","En tramite por asignar - trasladar","Cerrado - Por no competencia","Cerrado - Por no competencia","BUENAS TARDES MI CONSULTA ES LA SIGUIENTE  ME PUEDO PARAR EN LA CALLE Y CAMINAR DE UN LADO A OTRO SIN SER OBSTACULO DE NADA NI DE NADIE CON UN PENDON AL FRENTE DE UN ESTABLECIMIENTO DE COMERCIO PIDIENDOLES DE FORMA PACIFICA Y RESPETUOSA QUE ME SOLUCIONEN LA SITUACION DE UN PRODUCTO QUE ME VENDIERON Y SALIO DEFECTUOSO  SIN QUE ESTO ME CAUSE ALGUNA INFRACCION AL CODIGO DE POLICIA.  REITERO DE FORMA PACIFICA  RESPETUOSA  SIN DECIR NI UNA PALABRA SOLO MI PENDON Y YO. TODO ESTO PORQUE EL PRODUCTO QUE ME VENDIERON TIENE UN VALOR SUPERIOR A $65.000.000 MILLONES DE PESOS  QUE SE LOS PAGUE DE CONTADO  PERO QUE ESTOY ENDEUDADO CON UNA ENTIDAD FINANCIERA EN UN 75%. EJERCIENDO MI DERECHO A LA LIBRE EXPRESION Y A RECLAMAR DE FORMA PACIFICA Y RESPETUOSA SIN SER OBSTACULO DE NADA NI DE NADIE. DISCULPEN ES QUE ESTOY DESESPERADO CON LA SITUACION. AGRADEZCO LA ATENCION Y QUEDO ATENTO A SUS INDICACIONES.  ","ESTRATEGICO",null,"false","false","false",null,null,"false",null,null,null,null,null,null,-74074154498,469488655999999,null,null,"2021-12-29","2021-12-30","2021-12-29T13:35:02","2021-12-30",null," "," "," "," "," "," ","2022-01-27",20,null," ","2021-12-29T14:20:08"," ",1,0,"Registro para atencion","Funcionario","2021-12-31",1,0,"Reciba un cordial saludo apreciado ciudadano (a)  Una vez analizada su peticion le informamos que su caso lo esta tramitando la Secretaria de Gobierno -Alcaldia Local  entidad competente para darle tramite a su solicitud.  Para su conocimiento   De conformidad con el articulo 86 del decreto 1421 de 1993 Nivel Nacional  les corresponde a las alcaldias locales ejecutar las operaciones necesarias para la proteccion  recuperacion y conservacion del espacio publico.  La Defensoria del Espacio Publico registra la titulacion de bienes del Distrito  ofrece asesoria en la administracion y sostenibilidad del espacio publico  acompana y asesora tecnicamente a las Alcaldias Locales en la restitucion voluntaria del espacio publico indebidamente ocupado.  Feliz dia   ","Reciba un cordial saludo apreciado ciudadano (a)  Una vez analizada su peticion le informamos que su caso lo esta tramitando la Secretaria de Gobierno -Alcaldia Local  entidad competente para darle tramite a su solicitud.  Para su conocimiento   De conformidad con el articulo 86 del decreto 1421 de 1993 Nivel Nacional  les corresponde a las alcaldias locales ejecutar las operaciones necesarias para la proteccion  recuperacion y conservacion del espacio publico.  La Defensoria del Espacio Publico registra la titulacion de bienes del Distrito  ofrece asesoria en la administracion y sostenibilidad del espacio publico  acompana y asesora tecnicamente a las Alcaldias Locales en la restitucion voluntaria del espacio publico indebidamente ocupado.  Feliz dia   ","Natural","Natural","Peticionario Identificado","omesa32","En nombre propio","Cedula de ciudadania","ELKYN  FAJARDO FAJARDO",79209534,null,"elkyn.fajardo@hotmail.com",3102808418,3102808418,null,null,null,null,3,"false","true",null,null,1,"Recibida","Por el ciudadano",null,"PERIODO ACTUAL","Gestion oportuna (DTL)"," ","0-3.","GESTIONADOS","GESTIONADO"]
[338,4139692021,"GOBIERNO","ENTIDADES DISTRITALES","DEFENSORIA DEL ESPACIO PUBLICO","Oficina de Atencion a la Ciudadania | Puede Consolidar | Trasladar Entidades","AREA DE ATENCION A LA CIUDADANIA",null,"ESPACIO PUBLICO","TRASLADO DE PETICION POR COMPETENCIA","TRASLADO A ENTIDADES DISTRITALES","Olga Lucia Mesa Moreno","Activo",null,"WEB","SOLICITUD DE ACCESO A LA INFORMACION","En tramite - Por traslado","Solucionado - Por traslado","Solucionado - Por traslado","APROPIACION E INTERVENCION EN EL ESPACIO PUBLICO. SOLICITO CONOCER EL PERMISO O NORMA QUE PERMITE CERRAR  INTERVENIR UNA ZONA VERDE PARALELA A UN CAMINO PEATONAL Y ADJUNTANDOLA AL INMUEBLE.","MISIONAL",null,"false","true","false",null,null,"false",null,null,"12 - BARRIOS UNIDOS","98 - LOS ALCAZARES","ALCAZARES",3,-740704692900181,4661645339972420,null,null,"2021-12-22","2021-12-23","2021-12-22T13:14:04","2021-12-23",null," "," "," "," "," "," ","2022-01-20",20,null," ","2021-12-22T14:59:38","2021-12-23T11:09:48",1,0,"Registro para atencion","Funcionario","2021-12-24",1,0,"Reciba un cordial saludo  apreciado Ciudadano(a)  Una vez analizada su peticion y de acuerdo con la ley 1755 de 2015  trasladamos su caso a la Secretaria de Gobierno - Alcaldia Local- para que proceda de conformidad con sus competencias.  Para su conocimiento   De conformidad con el articulo 86 del decreto 1421 de 1993 Nivel Nacional  le corresponde a las alcaldias locales ejecutar las operaciones necesarias para la proteccion  recuperacion y conservacion del espacio publico.  La Defensoria del Espacio Publico registra la titulacion de bienes del Distrito  ofrece asesoria en la administracion y sostenibilidad del espacio publico  acompana y asesora tecnicamente a las Alcaldias Locales en la restitucion voluntaria del espacio publico indebidamente ocupado  Feliz dia ","Reciba un cordial saludo  apreciado Ciudadano(a)  Una vez analizada su peticion y de acuerdo con la ley 1755 de 2015  trasladamos su caso a la Secretaria de Gobierno - Alcaldia Local- para que proceda de conformidad con sus competencias.  Para su conocimiento   De conformidad con el articulo 86 del decreto 1421 de 1993 Nivel Nacional  le corresponde a las alcaldias locales ejecutar las operaciones necesarias para la proteccion  recuperacion y conservacion del espacio publico.  La Defensoria del Espacio Publico registra la titulacion de bienes del Distrito  ofrece asesoria en la administracion y sostenibilidad del espacio publico  acompana y asesora tecnicamente a las Alcaldias Locales en la restitucion voluntaria del espacio publico indebidamente ocupado  Feliz dia ",null,null,"Anonimo","omesa32","En nombre propio",null,"ANONIMO",null,null,null,null,null,null,null,null,null,null,"false","false","SECRETARIA DE GOBIERNO","DEFENSORIA DEL ESPACIO PUBLICO",1,"Recibida","Por el ciudadano",null,"PERIODO ACTUAL","Gestion oportuna (DTL)"," ","0-3.","GESTIONADOS","GESTIONADO"]
[337,4139572021,"GOBIERNO","ENTIDADES DISTRITALES","DEFENSORIA DEL ESPACIO PUBLICO","Oficina de Atencion a la Ciudadania | Puede Consolidar | Trasladar Entidades","AREA DE ATENCION A LA CIUDADANIA",null,"ESPACIO PUBLICO","TRASLADO DE PETICION POR COMPETENCIA","TRASLADO A ENTIDADES DISTRITALES","Olga Lucia Mesa Moreno","Activo",null,"WEB","SOLICITUD DE ACCESO A LA INFORMACION","Registro - con preclasificacion","Solucionado - Por traslado","Solucionado - Por traslado","APROPIACION E INTERVENCION EN EL ESPACIO PUBLICO. SOLICITO CONOCER EL PERMISO O NORMA QUE PERMITE CERRAR  INTERVENIR UNA ZONA VERDE PARALELA A UN CAMINO PEATONAL Y ADJUNTANDOLA AL INMUEBLE.","MISIONAL",null,"false","false","false",null,null,"false",null,null,"12 - BARRIOS UNIDOS","98 - LOS ALCAZARES","ALCAZARES",3,-7407051019370550,4661680093343530,null,null,"2021-12-22","2021-12-23","2021-12-22T12:02:22","2021-12-23",null," "," "," "," "," "," ","2022-01-20",20,null," ","2021-12-22T15:04:18"," ",1,0,"Registro para atencion","Funcionario","2021-12-24",1,0,"Reciba un cordial saludo  apreciado Ciudadano(a)  Una vez analizada su peticion y de acuerdo con la ley 1755 de 2015  trasladamos su caso a la Secretaria de Gobierno - Alcaldia Local- para que proceda de conformidad con sus competencias.  Para su conocimiento   De conformidad con el articulo 86 del decreto 1421 de 1993 Nivel Nacional  le corresponde a las alcaldias locales ejecutar las operaciones necesarias para la proteccion  recuperacion y conservacion del espacio publico.  La Defensoria del Espacio Publico registra la titulacion de bienes del Distrito  ofrece asesoria en la administracion y sostenibilidad del espacio publico  acompana y asesora tecnicamente a las Alcaldias Locales en la restitucion voluntaria del espacio publico indebidamente ocupado  Feliz dia ","Reciba un cordial saludo  apreciado Ciudadano(a)  Una vez analizada su peticion y de acuerdo con la ley 1755 de 2015  trasladamos su caso a la Secretaria de Gobierno - Alcaldia Local- para que proceda de conformidad con sus competencias.  Para su conocimiento   De conformidad con el articulo 86 del decreto 1421 de 1993 Nivel Nacional  le corresponde a las alcaldias locales ejecutar las operaciones necesarias para la proteccion  recuperacion y conservacion del espacio publico.  La Defensoria del Espacio Publico registra la titulacion de bienes del Distrito  ofrece asesoria en la administracion y sostenibilidad del espacio publico  acompana y asesora tecnicamente a las Alcaldias Locales en la restitucion voluntaria del espacio publico indebidamente ocupado  Feliz dia ",null,null,"Anonimo","omesa32","En nombre propio",null,"ANONIMO",null,null,null,null,null,null,null,null,null,null,"false","false","SECRETARIA DE GOBIERNO","DEFENSORIA DEL ESPACIO PUBLICO",1,"Registrada","Por el ciudadano",null,"PERIODO ACTUAL","Gestion oportuna (DTL)"," ","0-3.","GESTIONADOS","GESTIONADO"]
[335,4137232021,"GOBIERNO","ENTIDADES DISTRITALES","DEFENSORIA DEL ESPACIO PUBLICO","Oficina de Atencion a la Ciudadania | Puede Consolidar | Trasladar Entidades","AREA DE ATENCION A LA CIUDADANIA",null,"ESPACIO PUBLICO","ESPACIO PUBLICO","ESTUDIO DE LA VIABILIDAD DE LAS SOLICITUDES DE ADMINISTRACION DE BIENES PUBLICOS","Olga Lucia Mesa Moreno","Activo",null,"WEB","SOLICITUD DE ACCESO A LA INFORMACION","En tramite por asignar - trasladar","Solucionado - Por asignacion","Solucionado - Por asignacion","REFERENCIA  CONTRATO 136/2021 - REALIZAR LA ESTRUCTURACION INTEGRAL DEL PROYECTO LINEA  2 DEL METRO DE BOGOTA  INCLUYENDO LOS COMPONENTES LEGAL  DE RIESGOS  TECNICO Y  FINANCIERO ASUNTO  SOLICITUD DE INFORMACION SOBRE EL COMPONENTE PREDIAL DEL CONTRATO DE LA REFERENCIA ","MISIONAL",null,"false","true","false",null,null,"false",null,null,null,null,null,6,-7405519723897660,4654121528847040,null,null,"2021-12-22","2021-12-23","2021-12-31T00:09:53","2022-01-03",null," "," "," "," "," "," ","2022-01-31",20,null," ","2021-12-31T07:45:10"," ",1,0,"Registro para atencion","Funcionario","2022-01-04",1,0,"Reciba un cordial saludo  apreciado ciudadano   Su solicitud ha sido asignada a la Subdireccion de Registro Inmobiliario de la Defensoria del Espacio Publico con el radicado Orfeo Dadep No. 20214080270832.  Puede hacer seguimiento a su solicitud a traves de Bogota te escucha-Sistema de Quejas y Soluciones con el numero Sdqs 4137232021 y en https //www.dadep.gov.co/consulte-estado-su-radicado con el Orfeo No. 20214080270832  con el codigo de verificacion 5e1fe  Feliz dia ","Reciba un cordial saludo  apreciado ciudadano   Su solicitud ha sido asignada a la Subdireccion de Registro Inmobiliario de la Defensoria del Espacio Publico con el radicado Orfeo Dadep No. 20214080270832.  Puede hacer seguimiento a su solicitud a traves de Bogota te escucha-Sistema de Quejas y Soluciones con el numero Sdqs 4137232021 y en https //www.dadep.gov.co/consulte-estado-su-radicado con el Orfeo No. 20214080270832  con el codigo de verificacion 5e1fe  Feliz dia ","Natural","Natural","Peticionario Identificado","omesa32","En nombre propio","Cedula de ciudadania","JULIANA  CALA ",1020794847,null,"jcala@fdn.com.co",null,3042501907,"CL 71 6 14","02 - CHAPINERO","88 - EL REFUGIO","LOS ROSALES",6,"false","true",null,null,1,"Recibida","Por el ciudadano",null,"PERIODO ACTUAL","Gestion oportuna (DTL)"," ","0-3.","GESTIONADOS","PENDIENTE"]
[92,3941242021,"GOBIERNO","ENTIDADES DISTRITALES","DEFENSORIA DEL ESPACIO PUBLICO","Oficina de Atencion a la Ciudadania | Puede Consolidar | Trasladar Entidades","AREA DE ATENCION A LA CIUDADANIA",null,"ESPACIO PUBLICO","TRASLADO DE PETICION POR COMPETENCIA","TRASLADO A ENTIDADES DISTRITALES","Olga Lucia Mesa Moreno","Activo",null,"WEB","SOLICITUD DE ACCESO A LA INFORMACION","En tramite - Por traslado","Solucionado - Por traslado","Solucionado - Por traslado","BUENAS TARDES. EN REPRESENTACION DE FINDETER  QUIEN ACTUALMENTE TIENE UN CONTRATO CON LA SECRETARIA DISTRITAL DE AMBIENTE PARA A FUTURO DESARROLLAR EL PROYECTO DEL CENTRO DE RECEPCION Y REHABILITACION DE FLORA Y FAUNA SILVESTRE  AMABLEMENTE ME PERMITO SOLICITAR LA INFORMACION DE USO DE SUELO  PROPIETARIO Y POSIBILIDAD DE DESARROLLAR DICHO PROYECTO QUE SERA DE CARACTER EDUCATIVO E INVESTIGATIVO EN LASZONAS YA EDIFICADAS DEL LOTE/PARQUE UBICADO EN LA AVENIDA BOYACA ENTRE CALLE 7 Y CALLE 12 DONDE SE ENCONTRABA LA FABRICA DE BAVARIA  DE LO CONTRARIO  SE ME INDIQUE POR FAVOR EL PROCEDIMIENTO PARA REALIZAR LA SOLICITUD DE ESTA INFORMACION. QUEDO MUY ATENTO A SU AMABLE AYUDA. GRACIAS.","MISIONAL",null,"false","false","false",null,null,"false",null,null,null,null,null,null,null,null,null,null,"2021-12-05","2021-12-06","2021-12-06T10:42:41","2021-12-07",null," "," "," "," "," "," ","2022-01-04",20,null," ","2021-12-06T12:05:22"," ",1,0,"Registro para atencion","Funcionario","2021-12-09",1,0,"Reciba un cordial saludo  apreciado Ciudadano(a)  Una vez analizada su peticion y de acuerdo con la ley 1755 de 2015  trasladamos su caso a la Secretaria de Planeacion  para que proceda de conformidad con sus competencias.   Para su conocimiento   La Defensoria del Espacio Publico registra la titulacion de bienes del Distrito  ofrece asesoria en la administracion y sostenibilidad del espacio publico  acompana y asesora tecnicamente a las Alcaldias Locales en la restitucion voluntaria del espacio publico indebidamente ocupado  Feliz dia  ","Reciba un cordial saludo  apreciado Ciudadano(a)  Una vez analizada su peticion y de acuerdo con la ley 1755 de 2015  trasladamos su caso a la Secretaria de Planeacion  para que proceda de conformidad con sus competencias.   Para su conocimiento   La Defensoria del Espacio Publico registra la titulacion de bienes del Distrito  ofrece asesoria en la administracion y sostenibilidad del espacio publico  acompana y asesora tecnicamente a las Alcaldias Locales en la restitucion voluntaria del espacio publico indebidamente ocupado  Feliz dia  ","Natural","Natural","Peticionario Identificado","omesa32","En nombre propio","Cedula de ciudadania","SEBASTIAN  RAMIREZ HENAO",1030549158,null,"sramirezh@findeter.gov.co",3002945589,3002945589,null,"08 - KENNEDY","113 - BAVARIA","COOPERATIVA DE SUB-OFICIALES",3,"false","true","SECRETARIA DE PLANEACION","DEFENSORIA DEL ESPACIO PUBLICO",1,"Recibida","Por el ciudadano",null,"PERIODO ACTUAL","Gestion oportuna (DTL)"," ","0-3.","GESTIONADOS","GESTIONADO"]
[]
[]
[]
["Número petición\nNumero de registro en el Sistema","Funcionario:\nNombre asociado al usuario que tiene a cargo la petición ","Canal:\nNombre del canal parametrizado en el sistema por el cual fue registrada la petición","Tipología actualizada: \nTipo de documento utilizado por la entidad","Estado petición final\nEstado de la petición en el último día  del mes","Asunto \nResumen de la solicitud realizada por el ciudadano o resumida por el funcionario","Días gestión\nDías calendario transcurridos desde la fecha de inicio de términos hasta el último día del mes","Estado del Requerimiento\n \"Gestionado\" o \"Pendiente\" de respuesta definitiva por  parte de la Defensoría del Espacio Público o de las entidades competentes"]
[{"$f":"+B2","v":4200732021}]
[{"$f":"+B3","v":4139692021}]
[4139572021]
[4137232021]
[3941242021]
[]
[]
[]
["Número petición2","Dependencia","Canal","Tipo petición","Estado petición final","Asunto","Días gestión","Tipo reporte por entidad"]
[3941242021,"AREA DE ATENCION A LA CIUDADANIA","WEB","SOLICITUD DE ACCESO A LA INFORMACION","Solucionado - Por traslado","BUENAS TARDES. EN REPRESENTACION DE FINDETER  QUIEN ACTUALMENTE TIENE UN CONTRATO CON LA SECRETARIA DISTRITAL DE AMBIENTE PARA A FUTURO DESARROLLAR EL PROYECTO DEL CENTRO DE RECEPCION Y REHABILITACION DE FLORA Y FAUNA SILVESTRE  AMABLEMENTE ME PERMITO SOLICITAR LA INFORMACION DE USO DE SUELO  PROPIETARIO Y POSIBILIDAD DE DESARROLLAR DICHO PROYECTO QUE SERA DE CARACTER EDUCATIVO E INVESTIGATIVO EN LASZONAS YA EDIFICADAS DEL LOTE/PARQUE UBICADO EN LA AVENIDA BOYACA ENTRE CALLE 7 Y CALLE 12 DONDE SE ENCONTRABA LA FABRICA DE BAVARIA  DE LO CONTRARIO  SE ME INDIQUE POR FAVOR EL PROCEDIMIENTO PARA REALIZAR LA SOLICITUD DE ESTA INFORMACION. QUEDO MUY ATENTO A SU AMABLE AYUDA. GRACIAS.",1,"GESTIONADO"]
[4137232021,"AREA DE ATENCION A LA CIUDADANIA","WEB","SOLICITUD DE ACCESO A LA INFORMACION","Solucionado - Por asignacion","REFERENCIA  CONTRATO 136/2021 - REALIZAR LA ESTRUCTURACION INTEGRAL DEL PROYECTO LINEA  2 DEL METRO DE BOGOTA  INCLUYENDO LOS COMPONENTES LEGAL  DE RIESGOS  TECNICO Y  FINANCIERO ASUNTO  SOLICITUD DE INFORMACION SOBRE EL COMPONENTE PREDIAL DEL CONTRATO DE LA REFERENCIA ",1,"PENDIENTE"]
[4139572021,"AREA DE ATENCION A LA CIUDADANIA","WEB","SOLICITUD DE ACCESO A LA INFORMACION","Solucionado - Por traslado","APROPIACION E INTERVENCION EN EL ESPACIO PUBLICO. SOLICITO CONOCER EL PERMISO O NORMA QUE PERMITE CERRAR  INTERVENIR UNA ZONA VERDE PARALELA A UN CAMINO PEATONAL Y ADJUNTANDOLA AL INMUEBLE.",1,"GESTIONADO"]
[4139692021,"AREA DE ATENCION A LA CIUDADANIA","WEB","SOLICITUD DE ACCESO A LA INFORMACION","Solucionado - Por traslado","APROPIACION E INTERVENCION EN EL ESPACIO PUBLICO. SOLICITO CONOCER EL PERMISO O NORMA QUE PERMITE CERRAR  INTERVENIR UNA ZONA VERDE PARALELA A UN CAMINO PEATONAL Y ADJUNTANDOLA AL INMUEBLE.",1,"GESTIONADO"]
[4200732021,"AREA DE ATENCION A LA CIUDADANIA","WEB","SOLICITUD DE ACCESO A LA INFORMACION","Cerrado - Por no competencia","BUENAS TARDES MI CONSULTA ES LA SIGUIENTE  ME PUEDO PARAR EN LA CALLE Y CAMINAR DE UN LADO A OTRO SIN SER OBSTACULO DE NADA NI DE NADIE CON UN PENDON AL FRENTE DE UN ESTABLECIMIENTO DE COMERCIO PIDIENDOLES DE FORMA PACIFICA Y RESPETUOSA QUE ME SOLUCIONEN LA SITUACION DE UN PRODUCTO QUE ME VENDIERON Y SALIO DEFECTUOSO  SIN QUE ESTO ME CAUSE ALGUNA INFRACCION AL CODIGO DE POLICIA.  REITERO DE FORMA PACIFICA  RESPETUOSA  SIN DECIR NI UNA PALABRA SOLO MI PENDON Y YO. TODO ESTO PORQUE EL PRODUCTO QUE ME VENDIERON TIENE UN VALOR SUPERIOR A $65.000.000 MILLONES DE PESOS  QUE SE LOS PAGUE DE CONTADO  PERO QUE ESTOY ENDEUDADO CON UNA ENTIDAD FINANCIERA EN UN 75%. EJERCIENDO MI DERECHO A LA LIBRE EXPRESION Y A RECLAMAR DE FORMA PACIFICA Y RESPETUOSA SIN SER OBSTACULO DE NADA NI DE NADIE. DISCULPEN ES QUE ESTOY DESESPERADO CON LA SITUACION. AGRADEZCO LA ATENCION Y QUEDO ATENTO A SUS INDICACIONES.  ",1,"GESTIONADO"]